bitfinex/quotes_SOLUSD_20241226
["timestamp","ask_amount","ask_price","bid_price","bid_amount"]
[1735179880635,8.76350435,198.72,198.65,8.76350435]
[1735179883152,10.26390435,198.73,198.65,8.76350435]
[1735179884381,10.26390435,198.73,198.66,8.76350435]
[1735179885145,1.5004,198.73,198.66,8.76350435]
[1735179885454,8.76350435,198.77,198.7,8.76350435]
[1735179885613,8.76350435,198.78,198.71,8.76350435]
[1735179886345,8.76350435,198.79,198.72,8.76350435]
[1735179886513,1.6634,198.8,198.75,8.76350435]
[1735179886718,8.76350435,198.83,198.76,8.76350435]
[1735179887019,8.76350435,198.82,198.76,8.76350435]
[1735179887446,8.76350435,198.82,198.75,8.88899435]
[1735179887644,8.76350435,198.82,198.76,8.76350435]
[1735179887957,7.7123,198.85,198.76,8.76350435]
[1735179888163,8.76350435,198.84,198.78,8.76350435]
[1735179888937,1.6634,198.85,198.78,8.76350435]
[1735179889138,8.76350435,198.84,198.78,8.76350435]
[1735179889437,8.76350435,198.84,198.78,38.76350435]
[1735179889966,10.42690435,198.85,198.79,8.76350435]
[1735179890760,8.76350435,198.84,198.78,38.76350435]
[1735179891756,8.76350435,198.82,198.75,30.12549]
[1735179891956,8.76350435,198.82,198.77,8.76350435]
[1735179893557,8.76350435,198.82,198.75,30.12549]
[1735179893762,8.76350435,198.82,198.77,8.76350435]
[1735179899404,8.76350435,198.84,198.78,8.76350435]
[1735179900069,8.76350435,198.83,198.77,38.76350435]
[1735179901467,8.76350435,198.84,198.77,30.0]
[1735179901767,8.76350435,198.83,198.77,38.76350435]
[1735179903175,8.76350435,198.83,198.78,8.76350435]
[1735179903569,8.76350435,198.83,198.77,38.76350435]
[1735179904268,8.76350435,198.83,198.78,8.76350435]
[1735179904781,1.6634,198.85,198.79,8.88899435]
[1735179904946,1.6634,198.85,198.81,8.76350435]
[1735179905879,10.42690435,198.85,198.8,38.76350435]
[1735179906443,8.76350435,198.85,198.8,38.76350435]
[1735179908172,8.76350435,198.85,198.8,8.76350435]
[1735179908556,8.76350435,198.86,198.8,38.76350435]
[1735179909073,8.76350435,198.84,198.78,0.75441577]
[1735179909378,8.76350435,198.83,198.78,8.76350435]
[1735179911180,8.76350435,198.82,198.76,8.76350435]
[1735179915579,8.76350435,198.84,198.77,8.76350435]
[1735179916680,8.76350435,198.84,198.78,8.76350435]
[1735179916857,8.76350435,198.85,198.79,8.76350435]
[1735179919580,8.76350435,198.85,198.75,30.0]
[1735179919790,55.2103174,198.9,198.75,30.0]
[1735179919791,8.76350435,198.84,198.78,8.76350435]
[1735179921490,12.5708,198.88,198.72,4.93726862]
[1735179921667,8.76350435,198.86,198.79,8.76350435]
[1735179921863,7.587,198.9,198.79,30.0]
[1735179922070,8.76350435,198.86,198.8,8.76350435]
[1735179922464,7.587,198.9,198.85,38.76350435]
[1735179922465,1.5381,198.9,198.85,38.76350435]
[1735179922664,1.5381,198.9,198.86,8.76350435]
[1735179923658,1.5518,198.96,198.9,0.12549]
[1735179923857,1.5518,198.96,198.93,8.76350435]
[1735179924287,1.5518,198.96,198.91,8.76350435]
[1735179924862,10.31530435,198.96,198.87,30.0]
[1735179925071,8.76350435,198.95,198.89,8.76350435]
[1735179925465,8.76350435,198.93,198.87,8.76350435]
[1735179928400,8.76350435,198.94,198.88,8.76350435]
[1735179929297,8.76350435,198.92,198.82,37.12800269]
[1735179929594,8.76350435,198.92,198.85,8.76350435]
[1735179930419,8.76350435,198.92,198.86,8.76350435]
[1735179935795,8.76350435,198.9,198.81,0.75412293]
[1735179936001,8.76350435,198.89,198.82,8.76350435]
[1735179936210,8.76350435,198.88,198.81,8.76350435]
[1735179936574,8.76350435,198.9,198.83,8.76350435]
[1735179936779,8.76350435,198.94,198.87,8.76350435]
[1735179937076,8.76350435,198.94,198.88,8.76350435]
[1735179937505,8.76350435,198.94,198.87,8.76350435]
[1735179939090,8.76350435,198.93,198.87,8.76350435]
[1735179939292,8.76350435,198.91,198.84,8.76350435]
[1735179940010,8.76350435,198.91,198.84,38.76350435]
[1735179940194,8.76350435,198.92,198.85,8.76350435]
[1735179940394,8.76350435,198.92,198.86,8.76350435]
[1735179940912,8.76350435,198.93,198.86,8.76350435]
[1735179941709,10.31530435,198.96,198.9,8.76350435]
[1735179942182,1.5518,198.96,198.91,8.76350435]
[1735179945500,10.31530435,198.96,198.9,38.76350435]
[1735179946908,8.76350435,198.95,198.9,38.76350435]
[1735179947115,8.76350435,198.94,198.85,30.0]
[1735179947300,8.76350435,198.94,198.88,8.76350435]
[1735179947891,1.5518,198.96,198.85,30.0]
[1735179947892,8.76350435,198.93,198.87,8.76350435]
[1735179948395,8.76350435,198.92,198.86,8.76350435]
[1735179948895,8.76350435,198.91,198.85,30.0]
[1735179949096,8.76350435,198.91,198.85,38.76350435]
[1735179949401,8.76350435,198.92,198.86,8.76350435]
[1735179953318,8.76350435,198.93,198.86,8.76350435]
[1735179954527,1.5518,198.96,198.89,8.76350435]
[1735179954699,10.31530435,198.96,198.89,38.76350435]
[1735179955534,8.76350435,198.95,198.89,38.76350435]
[1735179956824,8.76350435,198.95,198.87,0.12549]
[1735179956993,1.5518,198.96,198.88,8.76350435]
[1735179957196,1.5518,198.96,198.9,8.88899435]
[1735179957423,10.31530435,198.96,198.9,8.76350435]
[1735179957597,8.76350435,198.95,198.89,8.76350435]
[1735179959219,8.76350435,198.95,198.88,30.75410062]
[1735179959458,8.76350435,198.95,198.77,1.6331]
[1735179959459,6.142,198.93,198.82,30.0]
[1735179959616,8.76350435,198.87,198.8,30.0]
[1735179959802,8.76350435,198.87,198.8,8.76350435]
[1735179959998,8.76350435,198.87,198.74,15.52683956]
[1735179959999,8.76350435,198.83,198.74,15.52683956]
[1735179960223,8.76350435,198.83,198.76,8.76350435]
[1735179960614,8.76350435,198.85,198.78,8.76350435]
[1735179960814,8.76350435,198.83,198.76,8.76350435]
[1735179961040,1.5578,198.87,198.78,8.76350435]
[1735179961041,8.76350435,198.85,198.78,8.76350435]
[1735179961715,1.5578,198.87,198.8,38.76350435]
[1735179962023,1.5578,198.87,198.82,8.76350435]
[1735179962536,8.76350435,198.85,198.78,8.76350435]
[1735179963120,8.76350435,198.86,198.79,8.76350435]
[1735179963944,8.76350435,198.84,198.73,30.75442267]
[1735179964135,8.76350435,198.82,198.75,8.76350435]
[1735179964446,8.76350435,198.85,198.75,30.0]
[1735179964619,8.76350435,198.85,198.78,8.76350435]
[1735179964815,8.76350435,198.84,198.77,8.76350435]
[1735179965216,8.76350435,198.85,198.78,8.76350435]
[1735179965423,8.76350435,198.86,198.79,8.76350435]
[1735179965610,10.32130435,198.87,198.8,8.76350435]
[1735179966118,8.76350435,198.86,198.79,8.76350435]
[1735179966327,8.76350435,198.86,198.78,8.76350435]
[1735179967007,8.76350435,198.86,198.79,8.76350435]
[1735179967545,1.5578,198.87,198.8,38.88899435]
[1735179967838,14.55524752,198.95,198.85,8.76350435]
[1735179967839,8.76350435,198.92,198.85,8.76350435]
[1735179968039,8.76350435,198.91,198.84,8.76350435]
[1735179969114,8.76350435,198.88,198.78,30.0]
[1735179969319,8.76350435,198.88,198.81,8.76350435]
[1735179969629,8.76350435,198.85,198.78,8.76350435]
[1735179970219,8.76350435,198.83,198.73,0.75445979]
[1735179970406,8.76350435,198.81,198.74,8.76350435]
[1735179970840,8.76350435,198.82,198.75,8.76350435]
[1735179971039,8.2078,198.86,198.78,8.76350435]
[1735179971040,8.76350435,198.85,198.78,8.76350435]
[1735179971339,1.6126,198.86,198.82,8.76350435]
[1735179971538,1.6126,198.86,198.8,8.88899435]
[1735179972567,1.6126,198.86,198.79,30.75439736]
[1735179972568,10.37610435,198.86,198.78,8.76350435]
[1735179972773,10.37610435,198.86,198.79,8.76350435]
[1735179972953,1.6126,198.86,198.79,8.76350435]
[1735179973151,8.76350435,198.87,198.83,30.0]
[1735179973355,1.5194,198.94,198.88,0.12549]
[1735179973568,1.5194,198.94,198.9,8.76350435]
[1735179974236,1.5194,198.94,198.89,14.41317469]
[1735179974492,1.5194,198.94,198.89,13.65919169]
[1735179974677,1.5194,198.94,198.88,0.12549]
[1735179974891,1.5194,198.94,198.88,13.78468169]
[1735179975065,1.5194,198.94,198.88,13.65919169]
[1735179975575,1.5194,198.94,198.89,13.65919169]
[1735179977978,1.5194,198.94,198.88,13.65919169]
[1735179978150,13.65919169,198.96,198.89,43.65919169]
[1735179979698,13.65919169,198.97,198.9,13.65919169]
[1735179982186,13.65919169,198.96,198.89,43.65919169]
[1735179983683,13.65919169,198.91,198.85,13.65919169]
[1735179984397,13.65919169,198.88,198.79,30.0]
[1735179984564,1.6184,198.9,198.81,13.65919169]
[1735179984565,13.65919169,198.87,198.81,13.65919169]
[1735179985089,13.65919169,198.87,198.8,13.65919169]
[1735179985299,21.80059169,198.9,198.78,0.75417597]
[1735179985454,21.80059169,198.9,198.73,7.76341978]
[1735179985455,13.65919169,198.79,198.73,7.76341978]
[1735179985661,13.65919169,198.79,198.71,30.0]
[1735179985869,13.65919169,198.8,198.73,13.65919169]
[1735179986066,13.65919169,198.8,198.69,38.51802105]
[1735179986067,13.65919169,198.81,198.74,13.65919169]
[1735179986366,20.0,198.87,198.76,13.65919169]
[1735179986569,13.65919169,198.84,198.77,43.65919169]
[1735179986996,13.65919169,198.84,198.78,0.12549]
[1735179987194,13.65919169,198.86,198.79,43.65919169]
[1735179987498,13.65919169,198.88,198.8,13.65919169]
[1735179988792,1.6184,198.9,198.84,13.65919169]
[1735179990900,1.6184,198.9,198.83,44.53883663]
[1735179991199,13.65919169,198.89,198.83,0.12549]
[1735179991784,13.65919169,198.89,198.83,30.12549]
[1735179991974,15.27759169,198.9,198.83,43.78468169]
[1735179992472,1.6184,198.9,198.84,13.65919169]
[1735179992687,13.65919169,198.91,198.84,13.65919169]
[1735179992899,13.65919169,198.91,198.84,14.41332139]
[1735179993715,13.65919169,198.9,198.83,43.78468169]
[1735179993998,13.65919169,198.9,198.83,0.12549]
[1735179994702,13.65919169,198.9,198.83,30.12549]
[1735179997606,13.65919169,198.9,198.83,43.78468169]
[1735179997809,6.1444,199.01,198.88,23.902374]
[1735179998024,13.65919169,198.99,198.91,43.65919169]
[1735179998306,13.65919169,198.96,198.89,44.41315749]
[1735179998474,13.65919169,198.97,198.89,44.41315749]
[1735180001310,13.65919169,198.99,198.92,30.12549]
[1735180001604,13.65919169,198.99,198.92,30.8793287]
[1735180001811,15.21399169,199.0,198.93,13.65919169]
[1735180004008,15.21399169,199.0,198.92,44.53852039]
[1735180004209,15.21399169,199.0,198.92,30.8793287]
[1735180004417,15.21399169,199.0,198.92,44.53852039]
[1735180004910,13.65919169,199.0,198.93,13.65919169]
[1735180005579,13.65919169,199.02,198.95,13.65919169]
[1735180005890,13.65919169,199.0,198.94,13.65919169]
[1735180010327,8.73842417,199.0,198.94,8.73842417]
[1735180011324,8.73842417,199.0,198.94,38.73842417]
[1735180011526,8.73842417,199.0,198.95,8.73842417]
[1735180011811,8.73842417,199.01,198.95,8.73842417]
[1735180012519,2.12694343,199.03,198.96,8.73842417]
[1735180012733,8.73842417,199.02,198.97,8.73842417]
[1735180015819,8.73842417,199.02,198.96,8.73842417]
[1735180019548,8.73842417,199.01,198.95,0.12549]
[1735180019725,8.73842417,199.01,198.95,8.86391417]
[1735180020598,8.73842417,198.96,198.92,37.7359]
[1735180020909,8.73842417,198.96,198.88,30.0]
[1735180021103,8.73842417,198.96,198.9,8.73842417]
[1735180021506,8.73842417,198.95,198.88,0.75394855]
[1735180021707,8.73842417,198.93,198.87,7.7359]
[1735180021912,1.5892,198.98,198.87,6.1218]
[1735180021913,8.73842417,198.92,198.87,6.1218]
[1735180022425,8.73842417,198.91,198.85,8.73842417]
[1735180022801,8.73842417,198.89,198.85,30.0]
[1735180023104,8.73842417,198.92,198.85,38.73842417]
[1735180023414,8.73842417,198.93,198.86,8.73842417]
[1735180023706,8.73842417,198.92,198.85,8.73842417]
[1735180024117,8.73842417,198.91,198.84,8.73842417]
[1735180024317,8.73842417,198.9,198.83,8.73842417]
[1735180024541,1.5892,198.98,198.79,30.0]
[1735180024542,8.73842417,198.89,198.79,30.0]
[1735180024715,8.73842417,198.86,198.79,8.73842417]
[1735180025314,8.73842417,198.87,198.79,8.73842417]
[1735180026224,13.67310256,198.87,198.8,13.67310256]
[1735180026920,6.1184,198.93,198.82,13.67310256]
[1735180026921,13.67310256,198.9,198.82,13.67310256]
[1735180027935,13.67310256,198.9,198.83,13.67310256]
[1735180028434,13.67310256,198.92,198.85,13.67310256]
[1735180028606,13.67310256,198.93,198.86,13.67310256]
[1735180029308,13.67310256,198.92,198.85,13.67310256]
[1735180029624,13.67310256,198.91,198.84,13.67310256]
[1735180031135,12.5647,198.97,198.82,30.0]
[1735180031136,13.67310256,198.92,198.85,13.67310256]
[1735180032839,13.67310256,198.92,198.84,13.67310256]
[1735180034046,13.67310256,198.91,198.84,13.67310256]
[1735180034208,13.67310256,198.9,198.83,13.67310256]
[1735180035717,13.67310256,198.88,198.81,13.67310256]
[1735180035917,13.67310256,198.87,198.8,13.67310256]
[1735180036532,13.67310256,198.84,198.76,30.0]
[1735180036714,13.67310256,198.82,198.75,13.67310256]
[1735180038946,13.67310256,198.83,198.76,13.67310256]
[1735180039542,13.67310256,198.85,198.78,13.67310256]
[1735180039859,1.5629,198.89,198.81,13.67310256]
[1735180040029,13.67310256,198.89,198.81,13.67310256]
[1735180040550,13.67310256,198.88,198.8,13.67310256]
[1735180041044,13.67310256,198.89,198.81,13.67310256]
[1735180041342,1.5629,198.94,198.83,13.67310256]
[1735180041343,13.67310256,198.9,198.83,13.67310256]
[1735180042361,13.67310256,198.91,198.83,13.67310256]
[1735180043361,13.67310256,198.91,198.8,30.0]
[1735180043561,13.67310256,198.91,198.79,13.67310256]
[1735180043562,13.67310256,198.88,198.79,13.67310256]
[1735180045756,13.67310256,198.88,198.81,13.67310256]
[1735180046174,13.67310256,198.91,198.83,13.67310256]
[1735180048164,13.67310256,198.92,198.84,13.67310256]
[1735180048967,13.67310256,198.91,198.84,13.67310256]
[1735180052680,13.67310256,198.92,198.85,13.67310256]
[1735180052883,13.67310256,198.93,198.86,13.67310256]
[1735180054581,13.67310256,198.92,198.85,13.67310256]
[1735180056479,13.67310256,198.92,198.84,13.67310256]
[1735180058174,8.7465129,198.92,198.84,8.7465129]
[1735180062663,8.7465129,198.9,198.83,16.11687629]
[1735180063171,8.7465129,198.89,198.83,16.11687629]
[1735180063691,8.7465129,198.89,198.83,15.3627129]
[1735180063891,8.7465129,198.86,198.81,1.6416]
[1735180064091,8.7465129,198.83,198.78,6.5581]
[1735180064381,8.7465129,198.81,198.76,1.5375]
[1735180064588,1.509,198.9,198.77,8.7465129]
[1735180064799,8.7465129,198.84,198.78,8.7465129]
[1735180064981,8.7465129,198.84,198.77,8.7465129]
[1735180065186,8.7465129,198.83,198.76,10.2840129]
[1735180065591,8.7465129,198.84,198.77,8.7465129]
[1735180066181,13.67656884,198.84,198.77,13.67656884]
[1735180066575,13.67656884,198.86,198.78,13.67656884]
[1735180067200,13.67656884,198.85,198.78,13.67656884]
[1735180069603,13.67656884,198.84,198.77,13.67656884]
[1735180069800,13.67656884,198.82,198.76,1.5375]
[1735180070004,13.67656884,198.82,198.75,13.67656884]
[1735180072407,13.67656884,198.83,198.76,13.67656884]
[1735180072613,13.67656884,198.85,198.78,13.67656884]
[1735180072906,13.67656884,198.86,198.79,13.67656884]
[1735180073208,13.67656884,198.85,198.78,13.67656884]
[1735180074213,13.67656884,198.86,198.79,13.67656884]
[1735180074817,13.67656884,198.85,198.78,13.67656884]
[1735180075406,13.67656884,198.82,198.75,13.67656884]
[1735180076914,13.67656884,198.83,198.76,13.67656884]
[1735180078787,13.67656884,198.84,198.77,13.67656884]
[1735180079488,13.67656884,198.84,198.75,30.75447239]
[1735180079489,13.67656884,198.89,198.82,13.67656884]
[1735180081015,13.67656884,198.88,198.81,13.67656884]
[1735180083528,13.67656884,198.87,198.8,13.67656884]
[1735180083828,13.67656884,198.86,198.8,13.67656884]
[1735180085637,13.67656884,198.86,198.79,13.67656884]
[1735180085943,13.67656884,198.81,198.74,13.67656884]
[1735180086310,8.75568003,198.81,198.74,8.75568003]
[1735180087035,8.75568003,198.82,198.75,8.75568003]
[1735180088153,13.6796073,198.82,198.75,13.6796073]
[1735180089352,13.6796073,198.81,198.74,13.6796073]
[1735180090242,13.6796073,198.8,198.73,20.2377073]
[1735180090758,13.6796073,198.81,198.74,13.6796073]
[1735180092858,13.6796073,198.82,198.75,13.6796073]
[1735180093359,13.6796073,198.8,198.71,1.5375]
[1735180093560,13.6796073,198.74,198.66,1.5497]
[1735180093736,13.6796073,198.74,198.67,13.6796073]
[1735180093935,13.6796073,198.77,198.7,13.6796073]
[1735180094137,13.679608,198.81,198.76,13.6796073]
[1735180094352,1.6067,198.86,198.76,13.6796073]
[1735180094559,13.6796073,198.83,198.76,13.6796073]
[1735180094753,13.6796073,198.84,198.77,13.6796073]
[1735180094954,13.6796073,198.85,198.78,13.6796073]
[1735180095968,13.6796073,198.84,198.78,13.6796073]
[1735180096273,13.6796073,198.84,198.77,13.6796073]
[1735180097175,13.6796073,198.83,198.76,13.6796073]
[1735180097771,13.6796073,198.83,198.75,13.6796073]
[1735180100974,13.6796073,198.84,198.77,13.6796073]
[1735180101148,13.6796073,198.85,198.78,13.6796073]
[1735180101860,15.2863073,198.86,198.79,13.6796073]
[1735180102051,13.6796073,198.85,198.78,13.6796073]
[1735180102790,1.5415,198.9,198.8,13.6796073]
[1735180102961,6.6288,198.94,198.85,13.6796073]
[1735180103160,13.6796073,198.92,198.85,13.6796073]
[1735180104490,13.6796073,198.95,198.88,13.6796073]
[1735180104660,13.6796073,198.94,198.88,13.6796073]
[1735180105664,13.6796073,198.94,198.87,13.6796073]
[1735180106869,13.6796073,198.95,198.88,13.6796073]
[1735180108193,8.7437104,198.95,198.88,8.7437104]
[1735180109808,8.7437104,198.94,198.87,8.7437104]
[1735180110518,8.7437104,198.92,198.84,42.5729]
[1735180110686,8.7437104,198.91,198.84,30.0]
[1735180110886,8.7437104,198.91,198.84,38.7437104]
[1735180114492,8.7437104,198.91,198.85,8.7437104]
[1735180114801,8.7437104,198.92,198.85,8.7437104]
[1735180115126,8.7437104,198.92,198.86,8.7437104]
[1735180116412,19.1922,198.99,198.86,8.7437104]
[1735180116589,8.7437104,198.95,198.88,8.7437104]
[1735180116785,6.6288,198.99,198.89,38.8692004]
[1735180116991,8.7437104,198.97,198.9,8.7437104]
[1735180117191,8.7437104,198.96,198.9,8.7437104]
[1735180120833,8.7437104,198.97,198.9,8.7437104]
[1735180123611,2.12694343,199.03,198.92,8.7437104]
[1735180123810,8.7437104,198.99,198.92,8.7437104]
[1735180124431,8.7437104,198.98,198.91,38.8692004]
[1735180127138,8.7437104,198.99,198.92,8.7437104]
[1735180129154,2.12694343,199.03,198.93,8.7437104]
[1735180129323,8.7437104,199.0,198.94,8.7437104]
[1735180132246,8.7437104,198.97,198.9,7.7707]
[1735180132452,8.7437104,198.93,198.87,8.7437104]
[1735180132654,8.7437104,198.92,198.85,16.6530104]
[1735180133350,1.5387,198.98,198.81,0.75407397]
[1735180133351,8.7437104,198.91,198.81,0.75407397]
[1735180133553,8.7437104,198.91,198.84,8.7437104]
[1735180133742,8.7437104,198.9,198.83,8.7437104]
[1735180133939,8.7437104,198.88,198.82,8.7437104]
[1735180134148,8.7437104,198.87,198.8,15.0639104]
[1735180135460,8.7437104,198.88,198.81,8.7437104]
[1735180136437,8.7437104,198.87,198.8,8.7437104]
[1735180137334,12.5674,198.93,198.76,6.3202]
[1735180137335,8.7437104,198.85,198.76,6.3202]
[1735180137539,8.7437104,198.84,198.77,8.7437104]
[1735180137751,8.7437104,198.84,198.76,8.7437104]
[1735180138058,8.7437104,198.78,198.68,30.0]
[1735180138237,8.7437104,198.78,198.71,8.7437104]
[1735180138438,20.0,198.87,198.68,30.75472446]
[1735180138439,8.7437104,198.76,198.69,8.7437104]
[1735180140254,13.68730107,198.76,198.69,13.68730107]
[1735180142181,13.68730107,198.77,198.7,13.68730107]
[1735180142476,6.5462,198.82,198.66,20.00750107]
[1735180142477,13.68730107,198.74,198.66,20.00750107]
[1735180142658,13.68730107,198.73,198.66,13.68730107]
[1735180142847,13.68730107,198.72,198.65,13.68730107]
[1735180143072,13.68730107,198.7,198.64,13.68730107]
[1735180143362,13.68730107,198.7,198.63,13.68730107]
[1735180145353,13.68730107,198.73,198.66,13.68730107]
[1735180145554,13.68730107,198.74,198.67,13.68730107]
[1735180146061,13.68730107,198.73,198.66,13.68730107]
[1735180146780,13.68730107,198.72,198.65,13.68730107]
[1735180147573,13.68730107,198.73,198.66,13.68730107]
[1735180147884,13.68730107,198.74,198.67,13.68730107]
[1735180148189,13.68730107,198.72,198.65,13.68730107]
[1735180150199,13.68730107,198.74,198.66,13.68730107]
[1735180151391,13.68730107,198.73,198.66,13.68730107]
[1735180155212,13.68730107,198.73,198.65,13.68730107]
[1735180155515,13.68730107,198.73,198.66,13.68730107]
[1735180156315,13.68730107,198.75,198.67,13.68730107]
[1735180156493,13.68730107,198.77,198.7,13.68730107]
[1735180156806,1.5387,198.78,198.72,13.68730107]
[1735180157000,15.22600107,198.78,198.71,13.68730107]
[1735180157379,1.5387,198.78,198.72,13.68730107]
[1735180159190,15.22600107,198.78,198.7,13.68730107]
[1735180161705,33.68730107,198.82,198.73,0.12549]
[1735180161880,1.6172,198.83,198.76,13.68730107]
[1735180162208,8.75080281,198.87,198.79,8.75080281]
[1735180164305,13.67321811,198.87,198.79,13.67321811]
[1735180165122,1.6172,198.88,198.81,13.67321811]
[1735180168727,13.67321811,198.85,198.77,13.67321811]
[1735180170327,13.67321811,198.83,198.76,13.67321811]
[1735180171831,13.67321811,198.84,198.76,13.67321811]
[1735180172029,13.67321811,198.84,198.77,13.67321811]
[1735180172515,13.67321811,198.82,198.75,13.67321811]
[1735180172714,13.67321811,198.81,198.73,13.67321811]
[1735180173731,13.67321811,198.82,198.74,13.67321811]
[1735180175432,13.67321811,198.81,198.74,13.67321811]
[1735180176119,1.6547,198.8,198.74,13.67321811]
[1735180177544,1.6547,198.8,198.71,13.67321811]
[1735180177545,13.67321811,198.78,198.71,13.67321811]
[1735180177721,13.67321811,198.76,198.68,13.67321811]
[1735180177924,13.67321811,198.74,198.67,13.67321811]
[1735180178112,13.67321811,198.71,198.64,13.67321811]
[1735180178316,13.67321811,198.7,198.63,13.67321811]
[1735180178531,13.67321811,198.7,198.62,13.67321811]
[1735180178734,13.67321811,198.7,198.6,0.75499706]
[1735180179031,13.67321811,198.7,198.62,13.67321811]
[1735180179544,13.67321811,198.7,198.63,13.67321811]
[1735180180911,1.556,198.71,198.66,13.67321811]
[1735180181135,1.556,198.71,198.67,13.67321811]
[1735180182117,6.5732,198.74,198.68,13.67321811]
[1735180182839,15.22921811,198.76,198.68,13.67321811]
[1735180183737,15.22921811,198.76,198.69,13.67321811]
[1735180185059,1.556,198.76,198.69,13.67321811]
[1735180188441,1.556,198.76,198.7,13.67321811]
[1735180192447,1.556,198.76,198.71,8.75790018]
[1735180194347,1.556,198.76,198.7,8.75790018]
[1735180195347,1.556,198.76,198.71,8.75790018]
[1735180197949,1.5507,198.8,198.72,8.75790018]
[1735180198251,10.30860018,198.8,198.72,8.75790018]
[1735180198549,8.75790018,198.79,198.72,8.75790018]
[1735180198939,10.30860018,198.8,198.72,8.75790018]
[1735180200559,1.5507,198.8,198.73,8.75790018]
[1735180201556,10.30860018,198.8,198.72,8.75790018]
[1735180202557,8.75790018,198.77,198.67,312.0]
[1735180202734,8.75790018,198.75,198.68,8.75790018]
[1735180202932,8.75790018,198.73,198.66,8.75790018]
[1735180203262,8.75790018,198.73,198.65,8.75790018]
[1735180203850,8.75790018,198.7,198.62,4.86166204]
[1735180204151,8.75790018,198.7,198.63,8.75790018]
[1735180204339,8.75790018,198.69,198.62,8.75790018]
[1735180204539,8.75790018,198.69,198.61,8.75790018]
[1735180204939,8.75790018,198.68,198.61,8.75790018]
[1735180206662,8.75790018,198.68,198.6,8.88339018]
[1735180206836,8.75790018,198.68,198.61,8.75790018]
[1735180207037,6.098,198.67,198.6,0.12549]
[1735180207342,8.75790018,198.66,198.59,8.75790018]
[1735180207552,14.85590018,198.67,198.6,8.75790018]
[1735180207955,6.098,198.71,198.62,8.75790018]
[1735180208263,8.75790018,198.7,198.63,8.75790018]
[1735180209264,8.75790018,198.69,198.62,8.75790018]
[1735180211854,8.75790018,198.7,198.62,8.75790018]
[1735180213250,6.098,198.71,198.65,8.75790018]
[1735180213559,1.5507,198.72,198.63,23.776884]
[1735180213560,1.5507,198.72,198.67,8.75790018]
[1735180214863,1.5507,198.72,198.68,8.75790018]
[1735180215073,1.5507,198.72,198.69,8.75790018]
[1735180215570,1.5507,198.72,198.67,28.75790018]
[1735180215739,1.5507,198.72,198.65,23.776884]
[1735180215944,1.5507,198.72,198.67,8.75790018]
[1735180216159,10.30860018,198.72,198.65,23.776884]
[1735180216470,8.75790018,198.7,198.63,32.53478418]
[1735180216969,8.75790018,198.7,198.63,8.75790018]
[1735180217268,8.75790018,198.7,198.64,0.12549]
[1735180217974,8.75790018,198.7,198.64,8.75790018]
[1735180218274,13.69473161,198.7,198.64,13.69473161]
[1735180219056,13.69473161,198.71,198.64,13.69473161]
[1735180221371,13.69473161,198.69,198.62,13.69473161]
[1735180221572,13.69473161,198.7,198.63,13.69473161]
[1735180222561,15.24543161,198.72,198.65,13.69473161]
[1735180224252,1.5507,198.72,198.68,13.69473161]
[1735180224458,1.5791,198.77,198.71,13.69473161]
[1735180224664,1.5791,198.77,198.76,13.69473161]
[1735180225052,7.6522,198.81,198.76,13.69473161]
[1735180225660,7.6522,198.81,198.75,13.69473161]
[1735180227975,1.5791,198.81,198.76,0.12549]
[1735180228175,15.27383161,198.81,198.74,13.69473161]
[1735180228359,13.69473161,198.8,198.73,13.69473161]
[1735180228681,15.27383161,198.81,198.74,13.69473161]
[1735180230296,1.5791,198.81,198.74,13.69473161]
[1735180233190,1.5791,198.81,198.75,23.902374]
[1735180233493,21.34693161,198.86,198.78,13.69473161]
[1735180233704,13.69473161,198.85,198.78,13.69473161]
[1735180235784,7.6522,198.86,198.79,13.69473161]
[1735180236087,7.6522,198.86,198.73,37.47161561]
[1735180236088,13.69473161,198.8,198.73,37.47161561]
[1735180236607,13.69473161,198.81,198.73,13.69473161]
[1735180237599,13.69473161,198.83,198.75,13.69473161]
[1735180238398,13.69473161,198.82,198.75,13.69473161]
[1735180241395,13.69473161,198.85,198.77,37.47161561]
[1735180241593,15.27383161,198.86,198.79,13.69473161]
[1735180242213,15.27383161,198.86,198.79,8.75113352]
[1735180242214,10.33023352,198.86,198.79,8.75113352]
[1735180244207,15.25225068,198.86,198.79,13.67315068]
[1735180244694,15.25225068,198.86,198.78,13.79864068]
[1735180245300,15.25225068,198.86,198.79,13.67315068]
[1735180247998,13.67315068,198.86,198.79,13.67315068]
[1735180248598,1.6635,198.9,198.8,37.45003468]
[1735180248599,13.67315068,198.88,198.8,37.45003468]
[1735180248798,13.67315068,198.89,198.82,13.67315068]
[1735180248997,13.67315068,198.88,198.81,13.67315068]
[1735180249194,13.67315068,198.85,198.78,44.4274435]
[1735180249398,13.67315068,198.85,198.75,6.1194]
[1735180249399,13.67315068,198.82,198.75,19.79255068]
[1735180249595,13.67315068,198.83,198.76,13.67315068]